[Event "44th Chess Olympiad Women 2022"]
[Site "Chennai"]
[Date "2022.08.03"]
[Round "6.9"]
[White "Gara, Ticia"]
[Black "Hoang, Thi Bao Tram"]
[Result "0-1"]
[WhiteElo "2367"]
[BlackElo "2288"]
[Annotator "TA"]
[PlyCount "118"]
[EventDate "2022.??.??"]
[TimeControl "60"]

{[%evp 10,118,79,65,81,73,100,93,92,102,129,133,180,168,165,160,172,160,170,
164,177,159,185,190,197,191,189,196,197,197,210,203,210,209,213,219,215,172,
172,154,184,156,175,112,98,97,105,91,114,115,158,158,245,231,221,140,287,291,
378,390,382,196,207,215,390,4,185,-45,-64,-250,-210,-269,-273,-285,-311,-402,
-384,-393,-398,-448,-472,-468,-456,-649,-638,-646,-640,-614,-632,-601,-625,
-617,-591,-783,-743,-1217,-1110,-1693,-1638,-1697,-1406,-5660,-5514,-29988,
-2133,-5273,-5234,-29979,-29980,-29980,-29981]} 1. e4 {[%emt 0:00:03][%cal
Ye2e4,Ye4e5]} c6 {[%emt 0:00:18]} 2. d4 {[%emt 0:00:10]} d5 {[%emt 0:00:00]} 3.
f3 {[%emt 0:00:10]} g6 {[%emt 0:02:27]} 4. Nc3 {[%emt 0:00:39]} Bg7 {[%emt 0:
00:52]} 5. Be3 {[%emt 0:00:26]} Nf6 {[%emt 0:03:43]} 6. e5 {[%emt 0:00:00]} Ng8
{[%emt 0:01:56] B15: Caro-Kann: 3 Nc3:3...g6 and 3...dxe4 4 Nxe4 Nf6 5 Nxf6+
exf6.} 7. f4 {[%emt 0:09:47]} Nh6 {[%emt 0:02:07]} 8. Nf3 {[%emt 0:00:00]} f6 {
[%emt 0:01:14] [#] White is better.} 9. h3 $146 {[%emt 0:09:59]} ({Predecessor:
} 9. Be2 O-O 10. O-O Bf5 11. h3 Qd7 12. Nd2 Be6 13. g4 b6 14. Nb3 {½-½ (13)
Andreev,E (2433)-Gelashvili,T (2605) Baku 2007}) 9... Nf7 {[%emt 0:00:00]} 10.
Qd2 {[%emt 0:04:49]} Be6 {[%emt 0:11:48]} (10... b5 $16 {might work better.}
11. Bd3 a5) 11. O-O-O $18 {[%emt 0:06:37]} Nd7 {[%emt 0:05:39]} 12. g4 {
[%emt 0:01:38][%cal Yg2g4,Yg4g5]} f5 {[%emt 0:04:05]} 13. Qg2 {[%emt 0:09:42]}
Nb6 {[%emt 0:08:58]} 14. Nd2 {[%emt 0:06:32]} Nh6 {[%emt 0:00:00][%cal Rf5g4]}
15. Be2 {[%emt 0:02:40]} Nd7 {[%emt 0:06:16]} 16. g5 {[%emt 0:00:00]} Nf7 {
[%emt 0:00:37]} 17. h4 {[%emt 0:00:03][%cal Yh3h4,Yh4h5]} Qc7 {[%emt 0:07:55]}
18. h5 {[%emt 0:00:24]} Rg8 {[%emt 0:00:42]} 19. Nf3 {[%emt 0:04:07]} O-O-O {
[%emt 0:02:04]} 20. Kb1 {[%emt 0:02:22]} Kb8 {[%emt 0:00:00]} 21. Na4 {[%emt 0:
03:17]} Rc8 {[%emt 0:15:33]} 22. Nc5 {[%emt 0:01:19]} Nd8 {[%emt 0:00:59]} 23.
Bd3 {[%emt 0:06:41]} Bf7 {[%emt 0:01:33]} 24. c3 {[%emt 0:05:28][%cal Yc2c3,
Yc3c4]} Ka8 {[%emt 0:02:43]} 25. Qc2 {[%emt 0:00:37]} b6 {[%emt 0:02:42]} 26.
Nb3 {[%emt 0:01:55]} (26. Na6 $18 Qb7 27. Nb4) 26... c5 $16 {[%emt 0:03:19]}
27. dxc5 {[%emt 0:01:09]} bxc5 {[%emt 0:00:00]} 28. c4 {[%emt 0:01:58]} d4 {
[%emt 0:01:52]} 29. Bd2 {[%emt 0:00:15]} Nc6 {[%emt 0:01:28]} 30. Bf1 {[%emt 0:
00:34][%cal Yd3f1,Yf1g2,Yg2d5]} a6 {[%emt 0:00:27]} (30... e6 $16 {was called
for.}) 31. Bg2 {[%emt 0:00:33]} Ka7 {[%emt 0:00:06]} 32. Rhe1 {[%emt 0:00:47]}
Be6 {[%emt 0:00:32]} (32... e6 $16) 33. Nh4 $18 {[%emt 0:01:32]} Bf8 {[%emt 0:
02:23]} 34. Bd5 {[%emt 0:00:41]} Nd8 {[%emt 0:00:06]} 35. Ba5 {[%emt 0:00:32]}
(35. hxg6 $142 hxg6 36. Bxe6 (36. Ba5 Nb6 $16) 36... Nxe6 37. Nxg6 $1) 35...
Nb6 {[%emt 0:00:06]} 36. Nf3 {[%emt 0:01:58]} Qd7 $2 {[%emt 0:00:42]} (36...
Qb8 {is a better defense.}) 37. Qd2 $2 {[%emt 0:02:26]} (37. Bxb6+ $18 Kxb6 38.
Qd2 Bxd5 39. cxd5) 37... Nxd5 $2 {[%emt 0:00:55] [#]} (37... Nxc4 $11 {and
Black has nothing to worry.} 38. Bxc4 Bxc4) 38. Nxc5 $2 {[%emt 0:00:41]} (38.
Nfxd4 $1 $18 cxd4 39. Qxd4+ Kb8 40. cxd5 Bxd5 41. Qxd5 Qxd5 42. Rxd5) 38...
Rxc5 $15 {[%emt 0:00:49]} 39. Qxd4 {[%emt 0:00:10] Black keeps a firm grip on
the game.} ({Better is} 39. Nxd4 $15 Rxc4 40. Bxd8 Rxd4 41. Qxd4+ Ka8 42. Ba5)
39... Nb7 $19 {[%emt 0:00:58]} 40. b4 {[%emt 0:02:07] [#]} Nxb4 {[%emt 0:02:46]
} 41. Bxb4 {[%emt 0:19:06]} Qxd4 {[%emt 0:00:31]} 42. Nxd4 {[%emt 0:00:02]}
Rxc4 {[%emt 0:00:00][%cal Yc5c4,Yc4b4,Yb4b6]} 43. Nxe6 {[%emt 0:04:19] Black
must now prevent Ba3.} Rxb4+ {[%emt 0:00:09]} 44. Kc2 {[%emt 0:00:42]} Rb6 {
[%emt 0:00:00]} 45. Nd8 {[%emt 0:00:40]} e6 {[%emt 0:05:06] And now ...Bb4
would win.} 46. Rd7 {[%emt 0:02:47]} (46. Nxb7 $142 Kxb7 47. Rd8) 46... Bb4 {
[%emt 0:01:58]} 47. Red1 {[%emt 0:04:59]} Rxd8 {[%emt 0:01:08]} 48. Rxd8 {
[%emt 0:00:06]} Nxd8 {[%emt 0:00:06]} 49. hxg6 {[%emt 0:00:34] [#]} hxg6 {
[%emt 0:01:30]} 50. Rxd8 {[%emt 0:00:03] Endgame KRB-KR} Rc6+ {[%emt 0:03:50]}
51. Kb3 {[%emt 0:00:04]} Be1 {[%emt 0:00:33]} 52. Rg8 {[%emt 0:00:56]} Bd2 {
[%emt 0:00:00]} 53. Rxg6 {[%emt 0:00:04]} Bxf4 {[%emt 0:00:06]} 54. Rg7+ {
[%emt 0:00:58]} Kb6 {[%emt 0:00:17]} 55. g6 {[%emt 0:00:02]} Bxe5 {[%emt 0:00:
37]} 56. Re7 {[%emt 0:00:08]} Kc5 {[%emt 0:00:19]} (56... Rc3+ $142 57. Kb2
Rc7+ 58. Ka3 Rxe7 59. Kb4 f4 60. Kc4 Rd7 61. Kb3 f3 62. g7 Bxg7 63. Kb4 f2 64.
a4 f1=Q 65. a5+ Kc6 66. Ka4 Qh3 67. Kb4 Rd4#) 57. g7 {[%emt 0:00:18] [#]} Bxg7
$1 {[%emt 0:00:00][%cal Yc5d4] ( -> ...Kd4!)} 58. Rxg7 {[%emt 0:00:02]} (58.
Rd7 Rb6+) 58... Kd4 {[%emt 0:00:08]} 59. a4 {[%emt 0:00:50]} f4 {[%emt 0:00:14]
Weighted Error Value: White=0.87/Black=0.24 (precise)} 0-1

[Event "44th Chess Olympiad Women 2022"]
[Site "Chennai"]
[Date "2022.08.03"]
[Round "6.9"]
[White "Nguyen, Thi Mai Hung"]
[Black "Lazarne Vajda, Szidonia"]
[Result "1-0"]
[WhiteElo "2223"]
[BlackElo "2313"]
[Annotator "TA"]
[PlyCount "136"]
[EventDate "2022.??.??"]
[TimeControl "60"]

{[%evp 10,136,7,7,18,16,18,5,7,5,7,0,7,0,0,-25,-21,-16,0,0,15,19,17,16,35,18,
22,11,30,9,16,9,9,3,29,0,0,0,20,14,45,28,48,43,70,79,85,47,47,31,46,31,31,31,
31,31,31,31,31,31,31,0,8,8,8,8,14,16,23,23,23,23,204,204,204,204,204,189,154,
154,193,210,230,219,408,420,422,429,422,415,409,302,608,600,600,0,592,592,592,
588,588,588,781,781,5189,3843,29976,29976,766,0,0,0,0,0,0,0,0,0,0,0,0,0,0,0,
29975,29976,29997,0,0]} 1. d4 {[%emt 0:00:06]} d5 {[%emt 0:00:28]} 2. Nf3 {
[%emt 0:00:13]} Nf6 {[%emt 0:00:38]} 3. Bf4 {[%emt 0:00:44]} e6 {[%emt 0:00:45]
} 4. e3 {[%emt 0:00:06]} Bd6 {[%emt 0:00:26]} 5. Nbd2 {[%emt 0:03:19]} Bxf4 {
[%emt 0:06:37]} 6. exf4 {[%emt 0:00:08]} Qd6 {[%emt 0:01:12] D02:1 d4 d5 2 Nf3
sidelines, including 2...Nf6 3 g3 and 2...Nf6 3 Bf4.} 7. g3 $1 {[%emt 0:00:00]}
b6 {[%emt 0:00:43]} 8. c3 {[%emt 0:01:34]} O-O {[%emt 0:01:07]} 9. Bd3 $1 {
[%emt 0:00:44]} c5 {[%emt 0:05:13]} 10. Qe2 {[%emt 0:01:54]} a5 {[%emt 0:00:00]
} 11. O-O {[%emt 0:05:19]} Ba6 {[%emt 0:01:07] [#]} 12. a4 $146 {[%emt 0:00:00]
} ({Predecessor:} 12. Bxa6 Nxa6 13. Rfd1 Nc7 14. c4 a4 15. a3 cxd4 16. Rac1 b5
17. c5 Qa6 18. Qe5 {1-0 (44) Jumabayev,R (2651)-Yilmaz,M (2624) Sharjah 2021})
12... Bxd3 {[%emt 0:03:53]} 13. Qxd3 {[%emt 0:00:08]} Na6 {[%emt 0:01:39][%cal
Yb8a6,Ya6c5,Yc5e4]} 14. Rfe1 {[%emt 0:06:26]} cxd4 {[%emt 0:00:00]} 15. Nxd4 {
[%emt 0:03:49]} Nc5 {[%emt 0:01:33]} 16. Qc2 {[%emt 0:02:39]} Nce4 {[%emt 0:07:
17]} 17. Rad1 {[%emt 0:03:25][%cal Rd2e4]} Nxd2 {[%emt 0:00:00]} 18. Rxd2 {
[%emt 0:00:13]} g6 {[%emt 0:00:34]} 19. h4 {[%emt 0:10:56]} Rac8 {[%emt 0:02:
30]} 20. Nf3 {[%emt 0:08:43]} Kg7 {[%emt 0:06:20]} 21. Ne5 {[%emt 0:04:30]} Nd7
{[%emt 0:01:59]} 22. h5 {[%emt 0:04:43]} Nxe5 {[%emt 0:00:00]} 23. Rxe5 {
[%emt 0:13:56]} Rc4 {[%emt 0:02:37]} 24. b3 {[%emt 0:05:18]} Rc5 {[%emt 0:01:
13]} 25. Qd3 {[%emt 0:05:03]} f6 {[%emt 0:08:06]} 26. Re3 {[%emt 0:00:00]} e5 {
[%emt 0:01:47]} 27. fxe5 {[%emt 0:02:22]} fxe5 {[%emt 0:00:06]} 28. hxg6 {
[%emt 0:01:00]} hxg6 {[%emt 0:00:36]} 29. Qe2 {[%emt 0:05:40]} d4 {[%emt 0:06:
26][%cal Yf8f2]} 30. cxd4 {[%emt 0:03:43]} exd4 {[%emt 0:03:05]} (30... Rc1+
31. Kg2 exd4 32. Re7+ Rf7 33. Rxf7+ Kxf7 34. Qf3+ Kg7 35. Qe4 $16) 31. Re4 {
[%emt 0:01:21]} Rc1+ {[%emt 0:04:35]} 32. Kg2 {[%emt 0:00:07]} Qc6 {[%emt 0:00:
53]} 33. Qd3 {[%emt 0:01:32]} Rd8 $1 {[%emt 0:04:05]} 34. Qf3 {[%emt 0:00:02]}
Rc3 $1 {[%emt 0:01:49]} 35. Re7+ {[%emt 0:01:11]} (35. Rd3 $5 {[%cal Rd3c3]}
Rc2 36. Rdxd4 (36. Rexd4 Qxf3+ 37. Kxf3 Rxd4 $16) 36... Rxd4 37. Rxd4 $16)
35... Kg8 {[%emt 0:00:25]} 36. Qxc6 {[%emt 0:00:50] Really sharp!} Rxc6 $11 {
[%emt 0:00:04] Endgame KRR-KRR} 37. Rd3 {[%emt 0:00:45]} Rc3 {[%emt 0:03:19]}
38. Rxc3 {[%emt 0:00:45]} dxc3 {[%emt 0:00:04] KR-KR} 39. Rc7 {[%emt 0:00:06]
Inhibits Rc8.} Rd3 {[%emt 0:00:05]} 40. Rc6 {[%emt 0:00:39][%csl Yb6,Yg6]} c2
$2 {[%emt 0:00:12]} (40... Kg7 $11) 41. Rxg6+ $18 {[%emt 0:30:25]} ({Inferior
is} 41. Rxc2 Rxb3 42. f4 g5 $11) 41... Kf7 {[%emt 0:00:00]} 42. Rc6 {[%emt 0:
00:13]} Rxb3 {[%emt 0:00:00]} ({Weaker is} 42... Rd2 43. g4 $16) 43. Rxc2 {
[%emt 0:00:00]} Rb4 {[%emt 0:00:00]} 44. Rc6 {[%emt 0:00:00]} Ke7 {[%emt 0:00:
00]} 45. f4 {[%emt 0:00:00]} Kd7 {[%emt 0:00:00]} 46. Rf6 {[%emt 0:00:00]
Black must now prevent Kf3.} Kc7 $2 {[%emt 0:00:00]} (46... Rxa4 47. Rxb6 Rb4)
47. g4 {[%emt 0:00:00][%cal Yg3g4,Yg4g5,Yg5g6]} ({Not} 47. Rf7+ Kd6 $14) 47...
Rxa4 {[%emt 0:00:00]} 48. g5 {[%emt 0:00:00]} Ra2+ {[%emt 0:00:00]} 49. Kf3 {
[%emt 0:00:00]} Ra1 {[%emt 0:00:00]} 50. g6 {[%emt 0:00:00]} Rg1 $2 {[%emt 0:
00:00]} (50... a4 51. Rf5 Rg1) 51. Kf2 {[%emt 0:00:08]} Rg4 {[%emt 0:00:00]}
52. Kf3 {[%emt 0:00:05]} Rg1 {[%emt 0:00:00]} 53. f5 $1 {[%emt 0:00:04][%cal
Yf4f5,Yf5f6] aiming for Rf7+.} a4 {[%emt 0:00:00]} 54. Rf7+ {[%emt 0:00:24]}
Kd6 {[%emt 0:00:00] [#]} 55. Kf4 {[%emt 0:01:20]} b5 {[%emt 0:06:02]} 56. Ra7 {
[%emt 0:02:05] White wants to mate with g7.} Kd5 {[%emt 0:02:38]} 57. g7 {
[%emt 0:03:57]} a3 {[%emt 0:00:40]} 58. f6 {[%emt 0:00:00]} Ke6 {[%emt 0:01:52]
} 59. Ra6+ $2 {[%emt 0:00:39]} (59. f7 $18 Rxg7 {[#]} 60. f8=Q $1 Rxa7 61. Qe8+
Kd6 62. Qb8+ Rc7 63. Qb6+ Kd7 64. Ke5) 59... Kf7 $11 {[%emt 0:00:17]} 60. Ke5 {
[%emt 0:00:04]} Rg5+ {[%emt 0:00:59]} 61. Kf4 {[%emt 0:00:30]} Rg1 {[%emt 0:00:
08]} 62. Kf5 {[%emt 0:00:12]} Rf1+ {[%emt 0:00:00]} 63. Ke5 {[%emt 0:00:05]
Threatening mate with Ra7+.} Re1+ {[%emt 0:00:10]} 64. Kd4 {[%emt 0:00:43]
White threatens Ra7+ and mate.} Rg1 {[%emt 0:00:21]} 65. Ke5 {[%emt 0:01:23]
Ra7+ would kill now.} Re1+ {[%emt 0:00:08]} 66. Kd5 {[%emt 0:00:29] Intending
Ra7+ and mate.} Rg1 $2 {[%emt 0:00:11]} (66... Rd1+ $11 67. Ke5 Re1+) 67. Ra8 {
[%emt 0:00:25]} Re1 {[%emt 0:00:01]} 68. Ra6 $2 (68. g8=Q+ {mates} Kxf6 69.
Rf8+ Ke7 70. Qg7#) 68... Rd1+ {[%emt 0:00:00] Weighted Error Value: White=0.18
(very precise) /Black=0.36. Loss on time!?} 1-0

[Event "44th Chess Olympiad Women 2022"]
[Site "Chennai"]
[Date "2022.08.03"]
[Round "6.9"]
[White "Vo, Thi Kim Phung"]
[Black "Hoang, Thanh Trang"]
[Result "1/2-1/2"]
[WhiteElo "2333"]
[BlackElo "2376"]
[Annotator "TA"]
[PlyCount "72"]
[EventDate "2022.??.??"]
[TimeControl "60"]

{[%evp 9,72,19,24,24,27,38,29,2,18,6,15,0,20,0,0,-20,-6,-20,-16,-20,-20,-22,
-22,-27,-13,-29,-11,-10,-16,-19,-11,-30,-17,-16,-21,-36,-17,-18,0,-12,0,-17,0,
0,0,0,0,0,0,0,0,0,0,0,0,0,0,0,0,0,0,0,0,0,0]} 1. d4 {[%emt 0:00:11]} d5 {
[%emt 0:00:19]} 2. c4 {[%emt 0:00:24]} e6 {[%emt 0:00:25]} 3. Nc3 {[%emt 0:00:
00]} a6 {[%emt 0:00:41]} 4. cxd5 {[%emt 0:01:01]} exd5 {[%emt 0:00:19]} 5. Nf3
{[%emt 0:00:23]} Nf6 {[%emt 0:00:41]} 6. Bg5 {[%emt 0:00:14] D37: Queen's
Gambit Declined: 5 Bf4.} Be6 {[%emt 0:00:57]} 7. e3 {[%emt 0:01:01]} Nbd7 {
[%emt 0:02:22]} 8. Be2 {[%emt 0:03:15] White has an edge.} Bd6 {[%emt 0:02:48]}
9. O-O {[%emt 0:00:52]} O-O {[%emt 0:01:51]} 10. Rc1 {[%emt 0:01:07]} h6 {
[%emt 0:04:02]} 11. Bh4 {[%emt 0:00:13]} c6 {[%emt 0:01:51]} 12. Na4 {[%emt 0:
00:00]} Qc7 {[%emt 0:09:30]} 13. Nc5 {[%emt 0:05:40]} Bg4 {[%emt 0:03:34] [#]}
14. Nxd7 $146 {[%emt 0:03:44]} ({Predecessor:} 14. Bg3 Nxc5 15. Bxd6 Qxd6 16.
Rxc5 Ne4 17. Rc1 Bxf3 18. Bxf3 Ng5 19. h4 Nxf3+ 20. Qxf3 {½-½ (65)
Galopoulos,N (2356)-Bartel,M (2600) Skopje 2018}) 14... Nxd7 {[%emt 0:00:33]}
15. Bg3 {[%emt 0:00:38]} Bxg3 {[%emt 0:02:15]} 16. hxg3 {[%emt 0:00:10]} Rfe8 {
[%emt 0:01:36]} 17. Re1 {[%emt 0:07:33]} Qd6 {[%emt 0:02:15]} 18. Qb3 {[%emt 0:
00:00]} Rab8 {[%emt 0:01:10]} 19. Bd3 {[%emt 0:03:49]} Qf6 {[%emt 0:04:25]} 20.
Nh2 {[%emt 0:00:50]} Bf5 {[%emt 0:01:01]} 21. Bxf5 {[%emt 0:00:31]} Qxf5 {
[%emt 0:00:11]} 22. Qc2 {[%emt 0:00:15]} Qxc2 {[%emt 0:06:46]} 23. Rxc2 {
[%emt 0:00:33] The position is equal.} Kf8 {[%emt 0:00:31]} 24. Nf3 {[%emt 0:
00:00]} Nb6 {[%emt 0:06:42]} 25. Ne5 {[%emt 0:03:16]} f6 {[%emt 0:03:04]} 26.
Nd3 {[%emt 0:01:05]} Nc4 {[%emt 0:00:20]} 27. b3 {[%emt 0:01:27]} Nd6 {[%emt 0:
00:00]} 28. g4 {[%emt 0:03:05]} Re7 {[%emt 0:02:03]} 29. f3 {[%emt 0:00:32]}
Rbe8 {[%emt 0:00:51]} 30. Kf2 {[%emt 0:00:08]} Kf7 {[%emt 0:03:03]} 31. a4 {
[%emt 0:01:33]} g6 {[%emt 0:00:30]} 32. Nf4 {[%emt 0:00:30]} Kg7 {[%emt 0:00:
00]} 33. Rce2 {[%emt 0:00:30]} Kf7 {[%emt 0:00:30]} 34. Rh1 {[%emt 0:00:30]}
Kg7 {[%emt 0:00:30]} 35. Rhe1 {[%emt 0:00:30]} Kf7 {[%emt 0:00:30]} 36. Rh1 {
[%emt 0:00:30]} Kg7 {[%emt 0:10:18] Weighted Error Value: White=0.06 (flawless)
/Black=0.06 (flawless)} 1/2-1/2

[Event "44th Chess Olympiad Women 2022"]
[Site "Chennai"]
[Date "2022.08.03"]
[Round "6.10"]
[White "Chumpitaz, Ann"]
[Black "Peycheva, Gergana"]
[Result "1/2-1/2"]
[WhiteElo "2278"]
[BlackElo "2295"]
[Annotator "TA"]
[PlyCount "89"]
[EventDate "2022.??.??"]
[TimeControl "60"]

{[%evp 14,89,0,-6,53,62,66,44,73,74,62,52,61,73,84,71,97,90,114,102,116,102,93,
42,58,37,75,49,69,29,69,15,23,13,12,0,0,0,38,38,51,0,0,-2,16,0,0,-22,0,-12,0,
-49,77,87,72,-36,-36,-51,0,-36,-36,-49,-36,-36,-44,-124,-101,-164,0,0,0,-22,0,
0,0,-22,0,0]} 1. e4 {[%emt 0:00:03][%cal Ye2e4,Ye4e5]} e6 {[%emt 0:00:00]} 2.
d4 {[%emt 0:00:11]} d5 {[%emt 0:00:07]} 3. e5 {[%emt 0:00:08]} c5 {[%emt 0:00:
18]} 4. c3 {[%emt 0:00:05]} Nc6 {[%emt 0:00:22]} 5. a3 {[%emt 0:00:00]} Bd7 {
[%emt 0:04:46]} 6. b4 {[%emt 0:04:08]} cxd4 {[%emt 0:07:28]} 7. cxd4 {[%emt 0:
00:06]} Nge7 {[%emt 0:04:13]} 8. Nf3 {[%emt 0:00:14]} Ng6 {[%emt 0:00:00] C02:
French: Advance Variation.} (8... Nf5 $11) 9. h4 $14 {[%emt 0:00:39][%cal
Yh2h4,Yh4h5]} Be7 {[%emt 0:11:59][%cal Re7h4]} 10. h5 {[%emt 0:00:00]} Nf8 {
[%emt 0:04:57] White is slightly better.} 11. Bd3 {[%emt 0:04:07]} h6 {[%emt 0:
03:27]} 12. Be3 {[%emt 0:03:00]} Nh7 {[%emt 0:05:24][%cal Yb7b5]} 13. Nc3 {
[%emt 0:00:08]} Ng5 {[%emt 0:03:29]} 14. Nxg5 {[%emt 0:00:40] [#]} Bxg5 $146 {
[%emt 0:01:42]} ({Predecessor:} 14... hxg5 15. O-O Rc8 16. Nb5 a6 17. Nd6+ Bxd6
18. exd6 f5 19. g3 Qf6 20. g4 f4 {½-½ (43) Aldrovandi,C (2328) -Luciani,V 
(2156) Saint Vincent 2000}) 15. f4 {[%emt 0:14:48]} Bh4+ {[%emt 0:00:00]} 16.
Kf1 {[%emt 0:00:16] [#] aiming for Qg4.} Be7 {[%emt 0:02:47]} 17. Rh3 {[%emt 0:
12:36]} O-O {[%emt 0:10:59]} 18. Qg4 {[%emt 0:00:00]} (18. Bc2 $16) 18... f5 {
[%emt 0:02:13]} 19. Qd1 {[%emt 0:05:29]} a5 {[%emt 0:03:03]} 20. b5 {[%emt 0:
00:10]} Na7 {[%emt 0:00:35][%cal Yc6a7,Ya7c8,Yc8b6]} 21. Qb3 {[%emt 0:06:52]}
Qe8 {[%emt 0:04:32][%cal Ya5a4]} 22. Kf2 {[%emt 0:01:48]} ({White should play} 
22. a4 $14) 22... a4 $11 {[%emt 0:02:39]} 23. Qb2 {[%emt 0:00:00]} Nc8 {
[%emt 0:01:17]} 24. Rg1 {[%emt 0:00:58]} Nb6 {[%emt 0:03:06]} 25. g4 {[%emt 0:
01:01]} Rc8 {[%emt 0:02:51]} 26. gxf5 {[%emt 0:04:14]} exf5 {[%emt 0:00:06]}
27. Kf3 {[%emt 0:06:04]} (27. Kf1 $14) 27... Kh8 {[%emt 0:00:00]} 28. Rg6 {
[%emt 0:01:37]} Bd8 {[%emt 0:04:46]} 29. Qb4 {[%emt 0:06:23] Strongly
threatening e6. Dancing on a razor blade. Active counter play!} Be7 {[%emt 0:
01:35]} 30. Qb2 {[%emt 0:00:07]} Bd8 {[%emt 0:00:03]} 31. Bf2 {[%emt 0:00:00]}
Be6 $1 {[%emt 0:00:47]} 32. Bh4 {[%emt 0:04:14]} (32. Be1 $11 {feels stronger.}
) 32... Bf7 {[%emt 0:02:07]} (32... Bxh4 $15 {stays ahead.} 33. Rxh4 Nc4) 33.
Bxd8 $16 {[%emt 0:12:02]} ({Wrong is} 33. Bxf5 $2 Bxg6 34. Bxc8 Bxh5+ 35. Kg2
Bxh4 36. Rxh4 Qg6+ 37. Kh2 Rxc8 $19) 33... Qxd8 {[%emt 0:00:04]} 34. Rxb6 {
[%emt 0:01:03]} Qxb6 $15 {[%emt 0:00:11]} 35. Nxa4 {[%emt 0:00:04]} Qa7 {
[%emt 0:01:19]} (35... Qa5 $15 36. Qb4 Ra8 37. Qxa5 Rxa5) 36. Qb4 {[%emt 0:00:
00]} (36. Nc5 $5 {[%cal Rb5b6]}) 36... Ra8 {[%emt 0:00:18]} 37. Nc5 {[%emt 0:
00:00]} Qxa3 {[%emt 0:00:26]} 38. Qxa3 {[%emt 0:00:03]} Rxa3 {[%emt 0:00:01]}
39. Ke2 {[%emt 0:00:05]} (39. Kg2 $15) 39... Be8 {[%emt 0:03:22] White must
now prevent ...Bxb5.} 40. Rh1 {[%emt 0:00:59] [#]} (40. b6 $17 {was called for.
}) 40... Ra2+ $2 {[%emt 0:01:05]} (40... b6 $1 $19 {[%cal Rb6c5]} 41. Ne6 Rf7)
41. Ke3 $11 {[%emt 0:30:11] The position is equal.} Ra3 {[%emt 0:02:19]
Threatens to win with ...Bxb5.} 42. Kd2 {[%emt 0:00:00]} Ra2+ {[%emt 0:13:45]}
43. Ke3 {[%emt 0:00:00]} Ra3 {[%emt 0:04:02] And now ...Bxb5 would win.} 44.
Kd2 {[%emt 0:00:00]} Ra2+ {[%emt 0:00:50]} 45. Ke3 {[%emt 0:00:00] Weighted
Error Value: White=0.21 (precise) /Black=0.24 (precise)} 1/2-1/2

[Event "44th Chess Olympiad Women 2022"]
[Site "Chennai"]
[Date "2022.08.03"]
[Round "6.10"]
[White "Krasteva, Beloslava"]
[Black "Caballero Quijano, Mitzy Mishell"]
[Result "1-0"]
[WhiteElo "2249"]
[BlackElo "2035"]
[Annotator "RC"]
[PlyCount "79"]
[EventDate "2022.??.??"]
[TimeControl "60"]

1. d4 {[%emt 0:00:04]} e6 {[%emt 0:00:08]} 2. c4 {[%emt 0:00:11]} Nf6 {[%emt 0:
00:00]} 3. Nc3 {[%emt 0:00:09]} Bb4 {[%emt 0:00:06]} 4. Qc2 {[%emt 0:00:04]} c5
{[%emt 0:00:16]} 5. dxc5 {[%emt 0:00:27]} Na6 {[%emt 0:03:17]} 6. a3 {[%emt 0:
00:00]} Bxc3+ {[%emt 0:00:14]} 7. Qxc3 {[%emt 0:00:06]} Nxc5 {[%emt 0:00:18]}
8. b4 {[%emt 0:00:14]} Nce4 {[%emt 0:04:52]} 9. Qb2 {[%emt 0:01:25]} Nd6 {
[%emt 0:04:21]} 10. e3 {[%emt 0:08:46]} b6 {[%emt 0:02:48]} 11. Qe5 {[%emt 0:
00:00]} Nf5 {[%emt 0:03:49]} 12. Bd3 {[%emt 0:05:51]} d6 {[%emt 0:01:45]} 13.
Qb2 {[%emt 0:00:52]} Bb7 {[%emt 0:02:42]} 14. f3 {[%emt 0:04:41]} O-O {[%emt 0:
00:00]} 15. Ne2 {[%emt 0:01:48]} Nd7 {[%emt 0:09:57]} 16. Nd4 {[%emt 0:12:39]}
Ne5 {[%emt 0:06:16]} 17. Bxf5 {[%emt 0:01:13]} exf5 {[%emt 0:00:06]} 18. O-O {
[%emt 0:02:08]} g6 {[%emt 0:04:58]} 19. Qc3 {[%emt 0:09:33]} Qc8 {[%emt 0:00:
00]} 20. Bb2 {[%emt 0:06:51]} Qxc4 {[%emt 0:01:34]} 21. Rac1 {[%emt 0:02:34]}
Rac8 {[%emt 0:15:00]} 22. Qd2 {[%emt 0:07:39]} Qd3 {[%emt 0:00:32]} 23. Qf2 {
[%emt 0:02:03]} Rxc1 {[%emt 0:02:31]} 24. Rxc1 {[%emt 0:01:46]} Rc8 {[%emt 0:
00:00]} 25. Qe2 {[%emt 0:04:55]} Qxe2 {[%emt 0:03:28]} 26. Rxc8+ {[%emt 0:00:
00]} Bxc8 {[%emt 0:00:06]} 27. Nxe2 {[%emt 0:00:03]} Ba6 {[%emt 0:01:00]} 28.
Nd4 {[%emt 0:00:46]} Bc4 {[%emt 0:00:12]} 29. Bc3 {[%emt 0:02:52]} Kf8 {
[%emt 0:01:20]} 30. Kf2 {[%emt 0:01:24]} Ke8 {[%emt 0:00:18]} 31. Kg1 {[%emt 0:
00:00]} Kd7 {[%emt 0:00:22]} 32. Kf2 {[%emt 0:00:18]} b5 {[%emt 0:00:59]} 33.
Kg1 {[%emt 0:00:54]} a6 {[%emt 0:00:07]} 34. Kf2 {[%emt 0:00:57]} Bd3 {[%emt 0:
00:00]} 35. Bd2 {[%emt 0:01:19]} Nc4 {[%emt 0:00:39]} 36. Bc1 {[%emt 0:00:02]}
Kc7 {[%emt 0:02:53]} 37. Nb3 {[%emt 0:02:31]} Kc6 {[%emt 0:01:15]} 38. Na5+ {
[%emt 0:02:38]} Kd5 {[%emt 0:01:44]} 39. Ke1 {[%emt 0:01:50]} Ne5 {[%emt 0:00:
00]} 40. Bd2 {[%emt 0:02:33]} 1-0